[Event "***Titled Tuesday 3|2 Blitz"]
[Site "Chess.com"]
[Date "2017.02.07"]
[Round "4"]
[White "Rating-Schmating"]
[Black "Rickstereo"]
[Result "1-0"]
[WhiteElo "2278"]
[BlackElo "2200"]
[TimeControl "180+2"]
[EndTime "13:57:58 PST"]
[Termination "Rating-Schmating won by resignation"]

1. e4 {[%clk 0:03:01.9]} 1... e6 {[%clk 0:02:56]} 2. d4 {[%clk 0:03:01.7]} 2...
d5 {[%clk 0:02:53.9]} 3. Nd2 {[%clk 0:03:01.6]} 3... Nf6 {[%clk 0:02:51.5]} 4.
Bd3 {[%clk 0:03:01.2]} 4... c5 {[%clk 0:02:47.7]} 5. exd5 {[%clk 0:03:01.8]}
5... cxd4 {[%clk 0:02:44.6]} 6. dxe6 {[%clk 0:02:59.4]} 6... Bxe6 {[%clk
0:02:45.4]} 7. Ngf3 {[%clk 0:03:00.1]} 7... Be7 {[%clk 0:02:32.8]} 8. O-O {[%clk
0:02:59.8]} 8... O-O {[%clk 0:02:32.9]} 9. Ne4 {[%clk 0:02:56.6]} 9... Nc6
{[%clk 0:02:26.6]} 10. Bf4 {[%clk 0:02:54.3]} 10... Qd5 {[%clk 0:02:01.8]} 11.
Re1 {[%clk 0:02:48.7]} 11... Rfd8 {[%clk 0:00:32.2]} 12. Qe2 {[%clk 0:02:46.8]}
12... Rac8 {[%clk 0:00:25.7]} 13. Nfg5 {[%clk 0:02:47.6]} 13... h6 {[%clk
0:00:25.4]} 14. Nxf6+ {[%clk 0:02:46.4]} 14... Bxf6 {[%clk 0:00:24.5]} 15. Nxe6
{[%clk 0:02:47.5]} 15... fxe6 {[%clk 0:00:23.4]} 16. Qxe6+ {[%clk 0:02:48.4]}
16... Qxe6 {[%clk 0:00:23.4]} 17. Rxe6 {[%clk 0:02:50.3]} 17... Nb4 {[%clk
0:00:25.2]} 18. Rae1 {[%clk 0:02:48.6]} 18... Nxc2 {[%clk 0:00:23.7]} 19. Rd1
{[%clk 0:02:37.2]} 19... Kf7 {[%clk 0:00:22.2]} 20. Bf5 {[%clk 0:02:36.7]} 20...
Rc5 {[%clk 0:00:14.3]} 21. Bh3 {[%clk 0:02:33.9]} 21... d3 {[%clk 0:00:13]} 22.
Rd6 {[%clk 0:02:30.1]} 22... Rxd6 {[%clk 0:00:12.7]} 23. Bxd6 {[%clk 0:02:32]}
23... Rd5 {[%clk 0:00:14.3]} 24. Bf4 {[%clk 0:02:31]} 24... Bxb2 {[%clk
0:00:14.8]} 25. g3 {[%clk 0:02:27.1]} 25... Nd4 {[%clk 0:00:13.1]} 26. Bg2
{[%clk 0:02:21.5]} 26... Ne2+ {[%clk 0:00:13.5]} 27. Kf1 {[%clk 0:02:23]} 27...
Rd7 {[%clk 0:00:12.1]} 28. Be4 {[%clk 0:02:21.1]} 28... Nxf4 {[%clk 0:00:10.5]}
29. gxf4 {[%clk 0:02:21.6]} 29... d2 {[%clk 0:00:11.9]} 30. Ke2 {[%clk
0:02:21.7]} 30... Bc3 {[%clk 0:00:11.3]} 31. Bd3 {[%clk 0:02:21.7]} 31... a6
{[%clk 0:00:11.1]} 32. Bc4+ {[%clk 0:02:22]} 32... Kf6 {[%clk 0:00:11.9]} 33.
Kf3 {[%clk 0:02:21.5]} 33... b5 {[%clk 0:00:12.7]} 34. Bb3 {[%clk 0:02:20.9]}
34... a5 {[%clk 0:00:13.3]} 35. Bc2 {[%clk 0:02:21]} 35... Rd4 {[%clk
0:00:10.9]} 36. Ke3 {[%clk 0:02:20.8]} 36... Rb4 {[%clk 0:00:09.1]} 37. Kd3
{[%clk 0:02:19.8]} 37... Rc4 {[%clk 0:00:10.4]} 38. Bb3 {[%clk 0:02:19.8]} 38...
Rc5 {[%clk 0:00:11.5]} 39. Ke4 {[%clk 0:02:16.6]} 39... b4 {[%clk 0:00:07.4]}
40. h4 {[%clk 0:02:15.6]} 40... Rh5 {[%clk 0:00:08.7]} 41. Rh1 {[%clk
0:02:13.4]} 41... g5 {[%clk 0:00:09.8]} 42. hxg5+ {[%clk 0:02:11.8]} 42... hxg5
{[%clk 0:00:11.7]} 43. Rxh5 {[%clk 0:02:11.9]} 1-0

[Event "***Titled Tuesday 3|2 Blitz"]
[Site "Chess.com"]
[Date "2017.02.07"]
[Round "4"]
[White "Blitzstream"]
[Black "martinique24"]
[Result "0-1"]
[WhiteElo "2437"]
[BlackElo "2330"]
[TimeControl "180+2"]
[EndTime "13:58:21 PST"]
[Termination "martinique24 won by checkmate"]

1. d4 {[%clk 0:03:02]} 1... Nf6 {[%clk 0:02:59.9]} 2. g4 {[%clk 0:03:00.7]} 2...
Nxg4 {[%clk 0:02:56.1]} 3. e4 {[%clk 0:03:01.6]} 3... d5 {[%clk 0:02:47.7]} 4.
e5 {[%clk 0:02:56.9]} 4... g6 {[%clk 0:02:18.5]} 5. Bf4 {[%clk 0:02:52]} 5...
Bg7 {[%clk 0:02:15.8]} 6. Bb5+ {[%clk 0:02:29.9]} 6... c6 {[%clk 0:02:12.1]} 7.
Bd3 {[%clk 0:02:30.8]} 7... Qb6 {[%clk 0:02:05.8]} 8. Ne2 {[%clk 0:02:19.8]}
8... O-O {[%clk 0:01:56]} 9. Nbc3 {[%clk 0:02:15]} 9... f6 {[%clk 0:01:48.1]}
10. exf6 {[%clk 0:02:02.1]} 10... Bxf6 {[%clk 0:01:40]} 11. h3 {[%clk
0:01:40.6]} 11... Bxd4 {[%clk 0:01:06.4]} 12. hxg4 {[%clk 0:01:41.4]} 12...
Bxf2+ {[%clk 0:01:05.9]} 13. Kf1 {[%clk 0:01:40]} 13... Bxg4 {[%clk 0:00:56.7]}
14. Qd2 {[%clk 0:01:20.7]} 14... Be3 {[%clk 0:00:43.7]} 15. Qe1 {[%clk
0:01:16.9]} 15... Bxf4 {[%clk 0:00:39.8]} 16. Nxf4 {[%clk 0:01:02.7]} 16...
Rxf4+ {[%clk 0:00:41.7]} 17. Kg2 {[%clk 0:01:04.5]} 17... Bf3+ {[%clk
0:00:40.9]} 18. Kg3 {[%clk 0:01:05.9]} 18... Bxh1 {[%clk 0:00:31.4]} 19. Kxf4
{[%clk 0:01:06.9]} 19... e5+ {[%clk 0:00:28.7]} 20. Qxe5 {[%clk 0:00:49.9]}
20... Qf2+ {[%clk 0:00:29]} 21. Kg5 {[%clk 0:00:51]} 21... Qg2+ {[%clk
0:00:25.1]} 22. Kh4 {[%clk 0:00:51.9]} 22... Nd7 {[%clk 0:00:22.6]} 23. Qe6+
{[%clk 0:00:48.7]} 23... Kh8 {[%clk 0:00:23.2]} 24. Qxd7 {[%clk 0:00:45.7]}
24... Qf2+ {[%clk 0:00:19.8]} 25. Kg5 {[%clk 0:00:42.4]} 25... Qe3+ {[%clk
0:00:17.8]} 26. Kh4 {[%clk 0:00:41.7]} 26... Rf8 {[%clk 0:00:15.6]} 27. Ne2
{[%clk 0:00:38.1]} 27... Qh6+ {[%clk 0:00:12.3]} 28. Kg3 {[%clk 0:00:35.4]}
28... Rf3+ {[%clk 0:00:11.3]} 29. Kg4 {[%clk 0:00:32.5]} 29... Qh5# {[%clk
0:00:10.6]} 0-1

[Event "***Titled Tuesday 3|2 Blitz"]
[Site "Chess.com"]
[Date "2017.02.07"]
[Round "4"]
[White "DrVelja"]
[Black "jcibarra"]
[Result "0-1"]
[WhiteElo "2514"]
[BlackElo "2629"]
[TimeControl "180+2"]
[EndTime "13:58:24 PST"]
[Termination "jcibarra won by resignation"]

1. e4 {[%clk 0:03:02]} 1... c5 {[%clk 0:03:01.1]} 2. Nf3 {[%clk 0:03:00.2]} 2...
d6 {[%clk 0:03:01.2]} 3. d4 {[%clk 0:03:01.3]} 3... cxd4 {[%clk 0:03:03.1]} 4.
Nxd4 {[%clk 0:03:02.5]} 4... Nf6 {[%clk 0:03:04.6]} 5. Nc3 {[%clk 0:03:03.2]}
5... a6 {[%clk 0:03:05.8]} 6. Bc4 {[%clk 0:03:04.6]} 6... e6 {[%clk 0:03:06.5]}
7. Bb3 {[%clk 0:03:05.6]} 7... Nbd7 {[%clk 0:03:07.4]} 8. Bg5 {[%clk 0:03:03.4]}
8... Nc5 {[%clk 0:03:07.2]} 9. O-O {[%clk 0:03:04.7]} 9... Be7 {[%clk
0:03:07.8]} 10. Re1 {[%clk 0:03:04.1]} 10... Qc7 {[%clk 0:03:08]} 11. f4 {[%clk
0:02:58.3]} 11... h6 {[%clk 0:02:56.2]} 12. Bh4 {[%clk 0:02:51.2]} 12... g5
{[%clk 0:02:38.2]} 13. fxg5 {[%clk 0:02:36.6]} 13... hxg5 {[%clk 0:02:38.7]} 14.
Bxg5 {[%clk 0:02:37.5]} 14... d5 {[%clk 0:02:25.7]} 15. e5 {[%clk 0:02:33.8]}
15... Nfe4 {[%clk 0:02:25.8]} 16. Bxe7 {[%clk 0:02:31.2]} 16... Qxe7 {[%clk
0:02:26.6]} 17. Nxe4 {[%clk 0:02:27.9]} 17... Nxe4 {[%clk 0:02:27.4]} 18. Qg4
{[%clk 0:02:27.5]} 18... Bd7 {[%clk 0:02:24.9]} 19. c4 {[%clk 0:02:12.8]} 19...
O-O-O {[%clk 0:02:16.4]} 20. Rac1 {[%clk 0:02:11.4]} 20... Kb8 {[%clk
0:02:14.1]} 21. cxd5 {[%clk 0:02:00.2]} 21... exd5 {[%clk 0:02:13.4]} 22. Qf4
{[%clk 0:01:59.4]} 22... Be6 {[%clk 0:01:59.8]} 23. Nf3 {[%clk 0:01:51]} 23...
Rdg8 {[%clk 0:01:53.8]} 24. Rc2 {[%clk 0:01:00.8]} 24... Rg4 {[%clk 0:01:46.4]}
25. Qe3 {[%clk 0:01:00.2]} 25... Rhg8 {[%clk 0:01:43.4]} 26. Rec1 {[%clk
0:00:47.8]} 26... Ng5 {[%clk 0:01:31.3]} 27. Nxg5 {[%clk 0:00:24.9]} 27... R4xg5
{[%clk 0:01:33.2]} 28. g3 {[%clk 0:00:21.5]} 28... Rg4 {[%clk 0:01:31.4]} 29.
Rc7 {[%clk 0:00:16]} 29... Qb4 {[%clk 0:01:20.6]} 30. Bd1 {[%clk 0:00:05.6]}
30... Re4 {[%clk 0:01:18.6]} 31. Qc3 {[%clk 0:00:03.1]} 31... Qb6+ {[%clk
0:01:15.9]} 32. Kg2 {[%clk 0:00:04.4]} 32... Re3 {[%clk 0:01:08.5]} 33. Qc2
{[%clk 0:00:05.6]} 33... Re1 {[%clk 0:01:05.6]} 34. Bf3 {[%clk 0:00:06.4]} 0-1

[Event "***Titled Tuesday 3|2 Blitz"]
[Site "Chess.com"]
[Date "2017.02.07"]
[Round "4"]
[White "GM_dmitrij"]
[Black "Sanan_Sjugirov"]
[Result "0-1"]
[WhiteElo "2480"]
[BlackElo "2653"]
[TimeControl "180+2"]
[EndTime "13:58:34 PST"]
[Termination "Sanan_Sjugirov won by resignation"]

1. e4 {[%clk 0:03:02]} 1... c5 {[%clk 0:02:45.2]} 2. Nf3 {[%clk 0:03:02.5]} 2...
d6 {[%clk 0:02:44.2]} 3. d4 {[%clk 0:03:03.4]} 3... cxd4 {[%clk 0:02:45.3]} 4.
Nxd4 {[%clk 0:03:04.6]} 4... Nf6 {[%clk 0:02:46.6]} 5. Nc3 {[%clk 0:03:05.9]}
5... a6 {[%clk 0:02:48]} 6. Bg5 {[%clk 0:03:06.9]} 6... e6 {[%clk 0:02:48]} 7.
f4 {[%clk 0:03:06.8]} 7... h6 {[%clk 0:02:48.7]} 8. Bh4 {[%clk 0:03:07.4]} 8...
Be7 {[%clk 0:02:47.5]} 9. Qf3 {[%clk 0:03:07.4]} 9... Nbd7 {[%clk 0:02:48.3]}
10. O-O-O {[%clk 0:03:06.8]} 10... g5 {[%clk 0:02:49.3]} 11. fxg5 {[%clk
0:03:04.4]} 11... hxg5 {[%clk 0:02:50.3]} 12. Bxg5 {[%clk 0:03:02.1]} 12... Ne5
{[%clk 0:02:51.3]} 13. Qe2 {[%clk 0:02:59.1]} 13... Nxe4 {[%clk 0:02:52.3]} 14.
Nxe4 {[%clk 0:02:47.2]} 14... Bxg5+ {[%clk 0:02:52.9]} 15. Kb1 {[%clk
0:02:45.9]} 15... Be7 {[%clk 0:02:52.5]} 16. Nf3 {[%clk 0:02:42.9]} 16... Qc7
{[%clk 0:02:42]} 17. Nxe5 {[%clk 0:02:35.1]} 17... dxe5 {[%clk 0:02:43.9]} 18.
g4 {[%clk 0:02:35.8]} 18... Bd7 {[%clk 0:02:37.8]} 19. Bg2 {[%clk 0:02:29.9]}
19... O-O-O {[%clk 0:02:37.3]} 20. g5 {[%clk 0:02:30.3]} 20... Rh4 {[%clk
0:02:26.2]} 21. Rd3 {[%clk 0:02:12.9]} 21... Bb5 {[%clk 0:02:14.2]} 22. Rxd8+
{[%clk 0:02:06.8]} 22... Qxd8 {[%clk 0:02:16.1]} 23. Qf2 {[%clk 0:01:39.4]}
23... Rf4 {[%clk 0:02:17]} 24. Qa7 {[%clk 0:01:39.7]} 24... Bc6 {[%clk
0:02:14.4]} 25. Re1 {[%clk 0:01:20.4]} 25... Qd4 {[%clk 0:02:09.7]} 26. Qxd4
{[%clk 0:01:05.7]} 26... exd4 {[%clk 0:02:11.6]} 27. a3 {[%clk 0:00:51.4]} 27...
Bxg5 {[%clk 0:02:00.8]} 28. Nxg5 {[%clk 0:00:38.7]} 28... Bxg2 {[%clk
0:02:01.7]} 29. h4 {[%clk 0:00:40.2]} 29... Rxh4 {[%clk 0:01:42.6]} 30. Nxf7
{[%clk 0:00:41.2]} 30... Bd5 {[%clk 0:01:41.7]} 31. b3 {[%clk 0:00:28]} 31...
Kc7 {[%clk 0:01:40.9]} 32. Re2 {[%clk 0:00:28.5]} 32... Rf4 {[%clk 0:01:24.8]}
33. Ne5 {[%clk 0:00:20.6]} 33... Kd6 {[%clk 0:01:23.8]} 34. Kb2 {[%clk
0:00:20.8]} 34... Rf5 {[%clk 0:01:20.2]} 35. Nd3 {[%clk 0:00:19.9]} 35... e5
{[%clk 0:01:19.6]} 36. c4 {[%clk 0:00:21.1]} 36... dxc3+ {[%clk 0:01:12.7]} 37.
Kxc3 {[%clk 0:00:22]} 37... Rf3 {[%clk 0:01:13.1]} 38. Kc2 {[%clk 0:00:19.8]}
38... Bxb3+ {[%clk 0:01:04.2]} 39. Kd2 {[%clk 0:00:16.7]} 39... Bc4 {[%clk
0:01:05]} 0-1

[Event "***Titled Tuesday 3|2 Blitz"]
[Site "Chess.com"]
[Date "2017.02.07"]
[Round "4"]
[White "GMHess"]
[Black "Aygehovit1992"]
[Result "1-0"]
[WhiteElo "2586"]
[BlackElo "2443"]
[TimeControl "180+2"]
[EndTime "13:58:43 PST"]
[Termination "GMHess won on time"]

1. c4 {[%clk 0:03:02]} 1... g6 {[%clk 0:03:00.3]} 2. Nc3 {[%clk 0:03:01]} 2...
Bg7 {[%clk 0:03:01.3]} 3. d4 {[%clk 0:03:01.9]} 3... Nf6 {[%clk 0:03:01.3]} 4.
e4 {[%clk 0:03:02.8]} 4... d6 {[%clk 0:03:02.1]} 5. Nf3 {[%clk 0:03:04.1]} 5...
O-O {[%clk 0:03:03.7]} 6. Be2 {[%clk 0:03:05.6]} 6... Na6 {[%clk 0:03:03.9]} 7.
O-O {[%clk 0:03:06.8]} 7... c5 {[%clk 0:03:04.3]} 8. d5 {[%clk 0:03:04.6]} 8...
Nc7 {[%clk 0:03:05.1]} 9. h3 {[%clk 0:03:02.7]} 9... a6 {[%clk 0:03:05]} 10. a4
{[%clk 0:03:00.1]} 10... b6 {[%clk 0:03:03.3]} 11. Bf4 {[%clk 0:02:56.2]} 11...
Nd7 {[%clk 0:02:50.8]} 12. Qd2 {[%clk 0:02:51.6]} 12... Rb8 {[%clk 0:02:51]} 13.
Bh6 {[%clk 0:02:49.4]} 13... Ne5 {[%clk 0:02:51.9]} 14. Nxe5 {[%clk 0:02:49.6]}
14... dxe5 {[%clk 0:02:53.1]} 15. Bxg7 {[%clk 0:02:50.1]} 15... Kxg7 {[%clk
0:02:54.2]} 16. Bg4 {[%clk 0:02:31.8]} 16... Bxg4 {[%clk 0:02:52.5]} 17. hxg4
{[%clk 0:02:33.7]} 17... Qd6 {[%clk 0:02:53.9]} 18. Ra3 {[%clk 0:02:24.4]} 18...
Ne8 {[%clk 0:02:40.9]} 19. Nd1 {[%clk 0:02:07.5]} 19... Qf6 {[%clk 0:02:21.4]}
20. Rf3 {[%clk 0:02:00.5]} 20... Qd6 {[%clk 0:02:11.4]} 21. Rh3 {[%clk
0:01:57.9]} 21... Rh8 {[%clk 0:02:12]} 22. Qh6+ {[%clk 0:01:58.3]} 22... Kg8
{[%clk 0:02:13.1]} 23. Ne3 {[%clk 0:01:52]} 23... Qf6 {[%clk 0:01:56.4]} 24. Rf3
{[%clk 0:01:36.9]} 24... Qg7 {[%clk 0:01:55.7]} 25. Qh4 {[%clk 0:01:37]} 25...
Rb7 {[%clk 0:01:48.1]} 26. Rg3 {[%clk 0:01:08.5]} 26... Nd6 {[%clk 0:01:47.2]}
27. Nf5 {[%clk 0:00:56.2]} 27... Nxf5 {[%clk 0:01:39.3]} 28. gxf5 {[%clk
0:00:53.8]} 28... Qf6 {[%clk 0:01:25.9]} 29. Qh6 {[%clk 0:00:52.8]} 29... Rd7
{[%clk 0:01:22.4]} 30. Ra1 {[%clk 0:00:44]} 30... Rd6 {[%clk 0:01:22.2]} 31.
Raa3 {[%clk 0:00:42.6]} 31... Qg7 {[%clk 0:01:19.8]} 32. Qe3 {[%clk 0:00:41.1]}
32... h5 {[%clk 0:01:13.6]} 33. a5 {[%clk 0:00:41]} 1-0

[Event "***Titled Tuesday 3|2 Blitz"]
[Site "Chess.com"]
[Date "2017.02.07"]
[Round "4"]
[White "Noukii"]
[Black "IMJonathanCarlstedt"]
[Result "1-0"]
[WhiteElo "2618"]
[BlackElo "2414"]
[TimeControl "180+2"]
[EndTime "13:58:48 PST"]
[Termination "Noukii won by resignation"]

1. d4 {[%clk 0:03:02]} 1... d5 {[%clk 0:02:59.2]} 2. Nf3 {[%clk 0:03:00.8]} 2...
e6 {[%clk 0:03:00.1]} 3. c4 {[%clk 0:03:00.9]} 3... c5 {[%clk 0:03:01]} 4. cxd5
{[%clk 0:03:01.9]} 4... exd5 {[%clk 0:03:02.6]} 5. g3 {[%clk 0:02:52.7]} 5...
Nf6 {[%clk 0:03:01.2]} 6. Bg2 {[%clk 0:02:49.4]} 6... Be7 {[%clk 0:03:02.7]} 7.
O-O {[%clk 0:02:47.1]} 7... O-O {[%clk 0:03:04.1]} 8. Nc3 {[%clk 0:02:47.6]}
8... Nc6 {[%clk 0:03:04.2]} 9. Bg5 {[%clk 0:02:48.4]} 9... c4 {[%clk 0:03:04.1]}
10. Ne5 {[%clk 0:02:49.6]} 10... Be6 {[%clk 0:03:05]} 11. b3 {[%clk 0:02:49.6]}
11... Qa5 {[%clk 0:03:04.3]} 12. Nxc6 {[%clk 0:02:50.8]} 12... bxc6 {[%clk
0:03:04.8]} 13. Rc1 {[%clk 0:02:52.3]} 13... Rad8 {[%clk 0:03:04.7]} 14. Qd2
{[%clk 0:02:36.2]} 14... h6 {[%clk 0:02:43.2]} 15. Bxf6 {[%clk 0:02:19.7]} 15...
Bxf6 {[%clk 0:02:42.7]} 16. Rfd1 {[%clk 0:02:19.6]} 16... c5 {[%clk 0:02:11.4]}
17. Nxd5 {[%clk 0:01:47.8]} 17... Qxd2 {[%clk 0:01:59.8]} 18. Nxf6+ {[%clk
0:01:47.8]} 18... gxf6 {[%clk 0:02:01.2]} 19. Rxd2 {[%clk 0:01:48.9]} 19... cxb3
{[%clk 0:02:01.2]} 20. d5 {[%clk 0:01:14.8]} 20... bxa2 {[%clk 0:01:32.6]} 21.
e4 {[%clk 0:01:15.4]} 21... Bc8 {[%clk 0:01:09.3]} 22. Rxa2 {[%clk 0:01:15.8]}
22... f5 {[%clk 0:01:00.4]} 23. e5 {[%clk 0:01:13.1]} 23... a6 {[%clk 0:00:56]}
24. Rxc5 {[%clk 0:01:13.2]} 24... Bb7 {[%clk 0:00:56.7]} 25. Rb2 {[%clk
0:01:08.6]} 25... Rd7 {[%clk 0:00:53.8]} 26. h4 {[%clk 0:00:47.2]} 26... Rfd8
{[%clk 0:00:49.8]} 27. e6 {[%clk 0:00:28.3]} 27... fxe6 {[%clk 0:00:36.4]} 28.
dxe6 {[%clk 0:00:30.2]} 28... Rd1+ {[%clk 0:00:36]} 29. Kh2 {[%clk 0:00:31.3]}
29... Bxg2 {[%clk 0:00:30.3]} 30. Kxg2 {[%clk 0:00:33.2]} 30... R8d6 {[%clk
0:00:31.2]} 31. Re2 {[%clk 0:00:27.3]} 31... Rd8 {[%clk 0:00:29.7]} 32. Rxf5
{[%clk 0:00:28.5]} 32... Ra1 {[%clk 0:00:26.4]} 33. Re4 {[%clk 0:00:27.4]} 33...
a5 {[%clk 0:00:26.9]} 34. Rg4+ {[%clk 0:00:28.5]} 34... Kh8 {[%clk 0:00:27.4]}
35. e7 {[%clk 0:00:30]} 1-0

[Event "***Titled Tuesday 3|2 Blitz"]
[Site "Chess.com"]
[Date "2017.02.07"]
[Round "4"]
[White "JSMastropiero"]
[Black "ChristopherYoo"]
[Result "0-1"]
[WhiteElo "2144"]
[BlackElo "2097"]
[TimeControl "180+2"]
[EndTime "13:58:58 PST"]
[Termination "ChristopherYoo won by resignation"]

1. d4 {[%clk 0:02:54.6]} 1... Nf6 {[%clk 0:02:58.9]} 2. c4 {[%clk 0:02:53.5]}
2... g6 {[%clk 0:02:57.4]} 3. Nc3 {[%clk 0:02:54.1]} 3... d5 {[%clk 0:02:57.5]}
4. Bf4 {[%clk 0:02:44]} 4... Bg7 {[%clk 0:02:55.6]} 5. e3 {[%clk 0:02:44]} 5...
c5 {[%clk 0:02:54.3]} 6. dxc5 {[%clk 0:02:41.4]} 6... Qa5 {[%clk 0:02:52.2]} 7.
Rc1 {[%clk 0:02:40.5]} 7... Ne4 {[%clk 0:02:23.1]} 8. cxd5 {[%clk 0:02:21.1]}
8... Nxc3 {[%clk 0:02:18.8]} 9. Qd2 {[%clk 0:02:14.5]} 9... Qxc5 {[%clk
0:02:14.6]} 10. bxc3 {[%clk 0:02:15.1]} 10... O-O {[%clk 0:01:55.1]} 11. Nf3
{[%clk 0:02:13.9]} 11... Bf5 {[%clk 0:01:23.5]} 12. Be2 {[%clk 0:01:39.9]} 12...
Nd7 {[%clk 0:01:04.5]} 13. O-O {[%clk 0:01:38.4]} 13... Nf6 {[%clk 0:01:02.6]}
14. c4 {[%clk 0:01:36.9]} 14... Ne4 {[%clk 0:01:03.4]} 15. Qd1 {[%clk
0:01:21.7]} 15... Bb2 {[%clk 0:00:56.7]} 16. Bh6 {[%clk 0:01:11.1]} 16... Bxc1
{[%clk 0:00:44.5]} 17. Bxf8 {[%clk 0:00:45.3]} 17... Bxe3 {[%clk 0:00:44.5]} 18.
Bh6 {[%clk 0:00:20.5]} 18... Bxh6 {[%clk 0:00:40.4]} 19. Nh4 {[%clk 0:00:19.7]}
19... Bd7 {[%clk 0:00:36.2]} 20. Bd3 {[%clk 0:00:18.7]} 20... Nxf2 {[%clk
0:00:23.5]} 21. Rxf2 {[%clk 0:00:17.4]} 21... Be3 {[%clk 0:00:24.6]} 22. Qf3
{[%clk 0:00:18.5]} 22... Bxf2+ {[%clk 0:00:22.6]} 23. Qxf2 {[%clk 0:00:19.9]}
23... Rc8 {[%clk 0:00:19.2]} 24. Nf3 {[%clk 0:00:18.6]} 24... b5 {[%clk
0:00:14.8]} 25. cxb5 {[%clk 0:00:18.1]} 25... Qxd5 {[%clk 0:00:13.3]} 26. Qe3
{[%clk 0:00:17.7]} 26... Bxb5 {[%clk 0:00:12.8]} 27. Bxb5 {[%clk 0:00:18.3]}
27... Qxb5 {[%clk 0:00:13.4]} 28. Qxe7 {[%clk 0:00:19.1]} 28... Qc5+ {[%clk
0:00:12.8]} 29. Qxc5 {[%clk 0:00:19.9]} 29... Rxc5 {[%clk 0:00:13.7]} 30. Kf2
{[%clk 0:00:20.4]} 30... Ra5 {[%clk 0:00:14]} 0-1

[Event "***Titled Tuesday 3|2 Blitz"]
[Site "Chess.com"]
[Date "2017.02.07"]
[Round "4"]
[White "Vrolijk"]
[Black "salomez"]
[Result "1-0"]
[WhiteElo "2300"]
[BlackElo "2141"]
[TimeControl "180+2"]
[EndTime "13:59:04 PST"]
[Termination "Vrolijk won by checkmate"]

1. e4 {[%clk 0:03:02]} 1... e5 {[%clk 0:02:56.5]} 2. Nf3 {[%clk 0:02:59.4]} 2...
Nc6 {[%clk 0:02:52.3]} 3. Bb5 {[%clk 0:03:00.2]} 3... a6 {[%clk 0:02:52.9]} 4.
Ba4 {[%clk 0:03:01.1]} 4... Nf6 {[%clk 0:02:54.3]} 5. d3 {[%clk 0:03:02.3]} 5...
b5 {[%clk 0:02:51]} 6. Bb3 {[%clk 0:03:03.5]} 6... Be7 {[%clk 0:02:50.3]} 7. Nc3
{[%clk 0:03:03.9]} 7... O-O {[%clk 0:02:48.5]} 8. Bg5 {[%clk 0:03:03.9]} 8... d6
{[%clk 0:02:48.4]} 9. h3 {[%clk 0:03:03.4]} 9... Be6 {[%clk 0:02:46.9]} 10. Bxf6
{[%clk 0:03:01.9]} 10... Bxf6 {[%clk 0:02:47.6]} 11. Bd5 {[%clk 0:03:01.2]}
11... Qd7 {[%clk 0:02:43.8]} 12. a3 {[%clk 0:03:01.6]} 12... Rab8 {[%clk
0:02:43.9]} 13. O-O {[%clk 0:03:00.1]} 13... Ne7 {[%clk 0:02:44.8]} 14. Nh2
{[%clk 0:02:51.4]} 14... c6 {[%clk 0:02:32.6]} 15. Bxe6 {[%clk 0:02:39.7]} 15...
fxe6 {[%clk 0:02:30]} 16. Ne2 {[%clk 0:02:28.6]} 16... d5 {[%clk 0:02:29.1]} 17.
Ng4 {[%clk 0:02:19.3]} 17... c5 {[%clk 0:02:24.6]} 18. Ng3 {[%clk 0:02:19.4]}
18... Qc7 {[%clk 0:02:16.1]} 19. Re1 {[%clk 0:02:14.8]} 19... Ng6 {[%clk
0:02:14.7]} 20. Rc1 {[%clk 0:01:47]} 20... Bg5 {[%clk 0:02:12.3]} 21. Rb1 {[%clk
0:01:48]} 21... Bh4 {[%clk 0:02:11.7]} 22. Nh5 {[%clk 0:01:34.6]} 22... c4
{[%clk 0:02:07.5]} 23. g3 {[%clk 0:01:32.2]} 23... Bg5 {[%clk 0:02:05]} 24. h4
{[%clk 0:01:31.7]} 24... Be7 {[%clk 0:02:03.5]} 25. exd5 {[%clk 0:01:27.6]}
25... exd5 {[%clk 0:02:03.5]} 26. dxc4 {[%clk 0:01:28.9]} 26... dxc4 {[%clk
0:01:22.7]} 27. Qd5+ {[%clk 0:01:28.1]} 27... Kh8 {[%clk 0:01:23.6]} 28. Nxe5
{[%clk 0:01:28.9]} 28... Nxe5 {[%clk 0:01:23.1]} 29. Qxe5 {[%clk 0:01:26.6]}
29... Qxe5 {[%clk 0:01:22.6]} 30. Rxe5 {[%clk 0:01:26.2]} 30... Bd6 {[%clk
0:01:07]} 31. Re6 {[%clk 0:01:21.5]} 31... Bc5 {[%clk 0:01:07.6]} 32. Nf4 {[%clk
0:01:15.5]} 32... Rbd8 {[%clk 0:00:59.4]} 33. Re2 {[%clk 0:01:14.5]} 33... Rfe8
{[%clk 0:00:40.4]} 34. Rbe1 {[%clk 0:01:13.9]} 34... Rxe2 {[%clk 0:00:37.5]} 35.
Rxe2 {[%clk 0:01:15.8]} 35... Kg8 {[%clk 0:00:38.2]} 36. Kg2 {[%clk 0:01:10.7]}
36... Kf7 {[%clk 0:00:36]} 37. Ne6 {[%clk 0:01:10.2]} 37... Rd5 {[%clk
0:00:30.4]} 38. Ng5+ {[%clk 0:01:03.2]} 38... Kg6 {[%clk 0:00:09.7]} 39. Re6+
{[%clk 0:00:54.3]} 39... Kf5 {[%clk 0:00:08.7]} 40. Kf3 {[%clk 0:00:50.5]} 40...
h6 {[%clk 0:00:06.6]} 41. g4# {[%clk 0:00:50.1]} 1-0

[Event "***Titled Tuesday 3|2 Blitz"]
[Site "Chess.com"]
[Date "2017.02.07"]
[Round "4"]
[White "platy3"]
[Black "Hamisandwich"]
[Result "0-1"]
[WhiteElo "2579"]
[BlackElo "2427"]
[TimeControl "180+2"]
[EndTime "13:59:06 PST"]
[Termination "Hamisandwich won on time"]

1. e4 {[%clk 0:03:02]} 1... d6 {[%clk 0:02:58.2]} 2. d4 {[%clk 0:03:01]} 2...
Nf6 {[%clk 0:02:59.5]} 3. Nc3 {[%clk 0:03:02.5]} 3... e5 {[%clk 0:03:01.1]} 4.
Nf3 {[%clk 0:03:03.3]} 4... Nbd7 {[%clk 0:03:01.8]} 5. g4 {[%clk 0:03:04.4]}
5... g6 {[%clk 0:03:00.8]} 6. g5 {[%clk 0:03:02.3]} 6... Nh5 {[%clk 0:03:02.1]}
7. Be3 {[%clk 0:03:03.2]} 7... Bg7 {[%clk 0:03:01.5]} 8. Qd2 {[%clk 0:02:58.1]}
8... O-O {[%clk 0:03:00.8]} 9. O-O-O {[%clk 0:02:57.8]} 9... c6 {[%clk
0:03:01.9]} 10. Bc4 {[%clk 0:02:39.2]} 10... b5 {[%clk 0:02:59.9]} 11. Bb3
{[%clk 0:02:40.4]} 11... a5 {[%clk 0:02:52.4]} 12. a4 {[%clk 0:02:39.9]} 12...
b4 {[%clk 0:02:53]} 13. Ne2 {[%clk 0:02:40.6]} 13... Bb7 {[%clk 0:02:08.6]} 14.
Ng3 {[%clk 0:02:39.3]} 14... exd4 {[%clk 0:02:05.6]} 15. Nxd4 {[%clk 0:02:30.5]}
15... Ne5 {[%clk 0:01:59.4]} 16. Nxh5 {[%clk 0:02:24.4]} 16... gxh5 {[%clk
0:01:58]} 17. Nf5 {[%clk 0:02:25.7]} 17... c5 {[%clk 0:01:50.8]} 18. Qxd6 {[%clk
0:01:46.6]} 18... c4 {[%clk 0:01:43.9]} 19. Nxg7 {[%clk 0:01:45.6]} 19... Qxd6
{[%clk 0:01:41.8]} 20. Rxd6 {[%clk 0:01:47.5]} 20... cxb3 {[%clk 0:01:37.6]} 21.
Nxh5 {[%clk 0:01:48]} 21... Rfc8 {[%clk 0:01:22.9]} 22. Nf6+ {[%clk 0:01:38.1]}
22... Kg7 {[%clk 0:01:24.1]} 23. Bd4 {[%clk 0:01:27.2]} 23... Rxc2+ {[%clk
0:01:02.7]} 24. Kb1 {[%clk 0:01:28.3]} 24... Nf3 {[%clk 0:00:42.8]} 25. Be3
{[%clk 0:01:01.7]} 25... Rac8 {[%clk 0:00:33.6]} 26. Rhd1 {[%clk 0:00:58.4]}
26... Ne5 {[%clk 0:00:25]} 27. Rd8 {[%clk 0:00:06.6]} 27... Nc4 {[%clk 0:00:14]}
28. Nh5+ {[%clk 0:00:07.1]} 28... Kg6 {[%clk 0:00:12.2]} 29. Nf4+ {[%clk
0:00:08.8]} 29... Kxg5 {[%clk 0:00:13.7]} 30. h4+ {[%clk 0:00:04.4]} 30... Kg4
{[%clk 0:00:12.5]} 31. Nd3 {[%clk 0:00:02.9]} 31... Bxe4 {[%clk 0:00:10.8]} 0-1